[Event "Gibraltar Masters 18th"]
[Site "Caleta"]
[Date "2020.01.23"]
[Round "3"]
[White "Lei, Tingjie"]
[Black "Sunilduth Lyna, Narayanan"]
[Result "0-1"]
[ECO "B90"]
[WhiteElo "2493"]
[BlackElo "2637"]
[Annotator "Sunilduth Lyna,Narayanan "]
[PlyCount "116"]
[EventDate "2020.01.21"]
[EventType "swiss"]
[EventRounds "10"]
[EventCountry "GGB"]
[SourceTitle "CBM 194 Extra"]
[Source "ChessBase"]
[SourceDate "2020.03.31"]
[SourceVersion "1"]
[SourceVersionDate "2020.03.31"]
[SourceQuality "1"]
[TimeControl "40/6000+30:20/3000+30:900+30"]

{[%evp 0,41,19,38,40,41,90,58,58,38,25,32,52,41,42,32,33,36,61,53,53,28,63,59,
75,18,17,27,29,30,30,23,-7,9,-4,-22,-30,-33,-15,-21,-23,-43,-41,-43] This game
was played in the third round of one of the strongest open tournaments in the
world - the Gibraltar Masters. I was up against one of the strongest women
players in the world. To get some fighting position with Black is always
difficult, but in this game it became reality.} 1. e4 {[%emt 0:00:00]} c5 {
[%emt 0:00:00]} 2. Nf3 {[%emt 0:00:10]} d6 {[%emt 0:00:00]} 3. d4 {[%emt 0:00:
45]} cxd4 {[%emt 0:00:01]} 4. Nxd4 {[%emt 0:00:04]} Nf6 {[%emt 0:00:05]} 5. Nc3
{[%emt 0:00:04]} a6 {[%emt 0:00:04]} 6. Be3 {[%emt 0:00:04]} e5 {[%emt 0:00:03]
} 7. Nb3 {[%emt 0:00:04]} Be6 {[%emt 0:00:07]} 8. f3 {[%emt 0:00:10]} h5 {
[%emt 0:00:08]} 9. Qd2 {[%emt 0:00:19]} Nbd7 {[%emt 0:00:05]} 10. Nd5 {[%emt 0:
00:21]} Bxd5 {[%emt 0:00:27]} 11. exd5 {[%emt 0:00:04]} Qc7 {[%emt 0:00:09]
Till here all the moves belonged to the mainstream theory and now I deviated a
bit with this interesting queen move! Well, the idea may seem not so clear,
but it's to remain flexible with my B on f8.} 12. O-O-O {[%emt 0:02:26]} (12.
c4 $5) 12... Be7 {[%emt 0:00:04]} 13. Kb1 {[%emt 0:00:34]} Nb6 {[%emt 0:00:27]}
14. Qa5 {[%emt 0:11:21]} Rc8 $1 {[%emt 0:01:05]} (14... Bd8 $6 15. c4 $1) 15.
c3 {[%emt 0:01:32]} Bd8 $1 {[%emt 0:00:12] The whole point of Black's setup.
If not for this tactical move, Black would be clearly worse. Now the immediate
threat is to play Nbxd5 followed by Qc6 creating a double attack on the queen
and rook.} 16. Bxb6 {[%emt 0:12:00]} (16. Be2 Nbxd5 $1 17. Rxd5 Qc6 18. Rxe5+
dxe5 19. Qxe5+ Kf8 {And the onus is on White to prove compensation.}) (16. Bg5
$5 Nbxd5 17. Qxc7 Bxc7 18. Bd3 Nf4 {Again there is compensation, but not sure
if it's enough.}) 16... Qxb6 {[%emt 0:00:17]} 17. Qxb6 $2 {[%emt 0:00:05] A
pleasant surprise. I was pretty much sure the ensuing endgame was in Black's
favour. Perhaps White should have kept the queens with 17.Qa4+ but still it
doesn't mean Black has problems.} (17. Qa4+ Kf8 18. h4 (18. f4 g6 19. g3 exf4
20. Qxf4 Kg7) 18... Rc7 $5 {A strange computer move preparing against White's
Bd3 move in the variation with Qe3.} (18... g6 19. g4 hxg4 20. fxg4 Qe3 21. Bd3
Qf4 22. Qxf4 exf4 23. h5 $132) 19. g4 hxg4 20. fxg4 Qe3 21. Bd3 Qf4) 17... Bxb6
{[%emt 0:00:05]} 18. Bd3 {[%emt 0:01:18]} h4 {[%emt 0:11:54]} 19. Rhe1 {
[%emt 0:04:22]} (19. Nd2 Ke7 20. Nc4 (20. Ne4 Nh5) 20... Bc5 21. Rhe1 Nh5 $17 {
[%cal Gg7g6,Gf7f5] The difference in strength between the bishops becomes
crucial in this kind of endgames!}) 19... Kf8 {[%emt 0:07:31]} 20. Bf1 {
[%emt 0:14:28]} Bf2 $5 {[%emt 0:11:57] Provoking the opponents pawns to move
forward to create some weakness. Now already White's position starts looking
suspicious. White doesnt have clear plan, whereas Black does, and this makes
all the difference} 21. Re2 {[%emt 0:00:05]} Bg1 {[%emt 0:00:09]} 22. g3 {
[%emt 0:03:03]} hxg3 {[%emt 0:00:47]} 23. hxg3 {[%emt 0:00:04]} Bb6 {[%emt 0:
01:07]} 24. Red2 {[%emt 0:52:49]} g6 {[%emt 0:00:30]} 25. c4 {[%emt 0:00:30]}
e4 {[%emt 0:00:30] Trying to cash in!} 26. fxe4 {[%emt 0:00:30]} Nxe4 {[%emt 0:
00:30]} 27. Rg2 {[%emt 0:00:30]} Rh1 {[%emt 0:00:30]} 28. Nd2 {[%emt 0:00:30]}
Nf2 {[%emt 0:00:30]} 29. Re1 {[%emt 0:00:30]} Ng4 {[%emt 0:00:30]} 30. Rge2 {
[%emt 0:00:30]} Bf2 {[%emt 0:00:30]} 31. Rc1 {[%emt 0:00:30]} Bxg3 {[%emt 0:00:
30]} 32. Rg2 {[%emt 0:00:30]} Bf4 {[%emt 0:00:30]} 33. Rxg4 {[%emt 0:00:30]}
Bxd2 $19 {[%emt 0:00:30] The rest was a matter of good technique!} 34. Rd1 {
[%emt 0:00:30]} Be3 {[%emt 0:00:30]} 35. Kc2 {[%emt 0:00:30]} g5 {[%emt 0:00:
30]} 36. Bd3 {[%emt 0:00:30]} Rh2+ {[%emt 0:00:30]} 37. Kb3 {[%emt 0:00:30]}
Bf4 {[%emt 0:00:30]} 38. Ka3 {[%emt 0:00:30]} Re8 {[%emt 0:00:30]} 39. b3 {
[%emt 0:00:30]} Re3 {[%emt 0:00:30]} 40. Bb1 {[%emt 0:00:30]} Ree2 {[%emt 0:00:
30]} 41. Rf1 {[%emt 0:50:30]} Be3 {[%emt 0:50:30]} 42. Rg3 {[%emt 0:00:30]} b6
{[%emt 0:00:30]} 43. Kb4 {[%emt 0:00:30]} Bd2+ {[%emt 0:00:30]} 44. Ka3 {
[%emt 0:00:30]} Rhf2 {[%emt 0:00:30]} 45. Rh1 {[%emt 0:00:30]} Bf4 {[%emt 0:00:
30]} 46. Rg4 {[%emt 0:00:30]} Rg2 {[%emt 0:00:30]} 47. Rxg2 {[%emt 0:00:30]}
Rxg2 {[%emt 0:00:30]} 48. Rh8+ {[%emt 0:00:30]} Kg7 {[%emt 0:00:30]} 49. Rb8 {
[%emt 0:00:30]} Bc1+ {[%emt 0:00:30]} 50. Kb4 {[%emt 0:00:30]} Rb2 {[%emt 0:00:
30]} 51. Bf5 {[%emt 0:00:30]} Rxa2 {[%emt 0:00:30]} 52. Kc3 {[%emt 0:00:30]}
Rf2 {[%emt 0:00:30]} 53. Bd7 {[%emt 0:00:00]} Rf3+ {[%emt 0:48:17]} 54. Kc2 {
[%emt 0:00:00]} Be3 {[%emt 0:00:05]} 55. Rb7 {[%emt 0:00:00]} a5 {[%emt 0:00:
12]} 56. Kd3 {[%emt 0:00:00]} Bc5+ {[%emt 0:00:07]} 57. Ke4 {[%emt 0:00:00]}
Rf4+ {[%emt 0:00:10]} 58. Kd3 {[%emt 0:00:00]} g4 {[%emt 0:00:03]} 0-1